bitfinex/quotes_SOLUSD_20250710
["timestamp","ask_amount","ask_price","bid_price","bid_amount"]
[1752154460924,0.14216157,157.79,157.78,0.1]
[1752154462023,6.4796988,157.79,157.78,0.1]
[1752154464629,13.84375982,157.79,157.78,0.1]
[1752154464823,13.98592139,157.79,157.78,0.1]
[1752154465226,7.29186037,157.79,157.78,0.1]
[1752154465535,13.98592139,157.79,157.78,0.1]
[1752154465735,29.82976447,157.79,157.73,6.69406102]
[1752154465935,32.83622259,157.75,157.7,7.36406102]
[1752154466234,98.29622259,157.75,157.71,7.36406102]
[1752154466546,6.33954608,157.74,157.72,0.67]
[1752154466733,97.79928904,157.75,157.73,0.67]
[1752154466913,91.46,157.75,157.74,0.67]
[1752154467313,97.79914421,157.75,157.72,0.65]
[1752154467535,97.79914421,157.75,157.73,6.69406102]
[1752154467743,97.79914421,157.75,157.69,7.98151043]
[1752154467946,0.14216157,157.74,157.71,6.69406102]
[1752154468132,0.14216157,157.74,157.69,1.64]
[1752154468334,6.83622259,157.74,157.7,6.69406102]
[1752154468509,6.33994801,157.73,157.68,6.5024]
[1752154468708,71.83994801,157.73,157.69,6.69406102]
[1752154468943,71.83994801,157.73,157.67,6.34211488]
[1752154469444,0.14216157,157.72,157.68,0.67]
[1752154469809,0.14216157,157.72,157.69,6.69406102]
[1752154470015,0.14216157,157.72,157.69,7.36406102]
[1752154470420,6.34075201,157.71,157.69,7.36406102]
[1752154470626,65.5,157.73,157.7,0.67]
[1752154470943,39.13984716,157.74,157.71,7.36406102]
[1752154471126,39.13984716,157.74,157.71,0.67]
[1752154471323,39.13984716,157.74,157.71,7.36406102]
[1752154471534,45.83390818,157.74,157.71,0.67]
[1752154471737,32.8,157.74,157.71,6.69406102]
[1752154472040,32.8,157.74,157.72,0.67]
[1752154472238,39.63622259,157.75,157.72,0.67]
[1752154472724,6.33954608,157.74,157.72,0.67]
[1752154473034,26.0,157.76,157.73,7.36406102]
[1752154473238,72.52282921,157.76,157.72,6.69406102]
[1752154473442,6.69406102,157.75,157.72,0.67]
[1752154473617,0.14216157,157.75,157.72,0.67]
[1752154473817,6.83622259,157.75,157.72,0.67]
[1752154474040,0.14216157,157.75,157.72,7.36406102]
[1752154474225,65.15876819,157.76,157.73,0.67]
[1752154474421,65.15876819,157.76,157.73,6.69406102]
[1752154474625,65.15876819,157.76,157.74,0.67]
[1752154475027,58.82,157.76,157.74,0.67]
[1752154475228,26.0,157.76,157.73,6.69406102]
[1752154475436,7.36406102,157.75,157.71,6.69406102]
[1752154475635,0.67,157.74,157.71,6.69406102]
[1752154475845,6.69406102,157.75,157.71,7.36406102]
[1752154476146,6.69406102,157.75,157.72,0.67]
[1752154476639,65.80876594,157.76,157.7,7.36406102]
[1752154476640,6.33994801,157.73,157.7,7.36406102]
[1752154477030,39.28186331,157.74,157.71,0.67]
[1752154477339,32.8,157.74,157.72,0.67]
[1752154477545,32.8,157.74,157.73,0.67]
[1752154478044,6.33930713,157.75,157.73,0.67]
[1752154478543,26.0,157.76,157.74,0.67]
[1752154478729,26.0,157.76,157.75,0.67]
[1752154479044,32.8,157.78,157.75,7.36406102]
[1752154479436,58.8,157.78,157.76,0.67]
[1752154479629,0.5,157.77,157.75,7.36406102]
[1752154480141,0.5,157.77,157.76,7.36406102]
[1752154480946,32.33795902,157.78,157.76,0.67]
[1752154481246,32.33795902,157.78,157.75,6.69406102]
[1752154481632,0.67,157.77,157.73,0.67]
[1752154481944,39.63622259,157.76,157.72,6.69406102]
[1752154482149,32.94216157,157.76,157.73,0.67]
[1752154482440,6.33914421,157.75,157.72,6.69406102]
[1752154482645,13.03320523,157.75,157.72,0.67]
[1752154482828,6.33914421,157.75,157.72,0.67]
[1752154483144,13.03320523,157.75,157.72,0.67]
[1752154483846,7.00914421,157.75,157.7,0.67]
[1752154484150,6.69406102,157.72,157.68,7.39406102]
[1752154484330,40.14406102,157.72,157.68,7.39406102]
[1752154484538,6.34075201,157.71,157.68,7.39406102]
[1752154485121,6.69406102,157.7,157.68,0.7]
[1752154485338,6.34075201,157.71,157.68,0.7]
[1752154485654,32.78,157.72,157.69,0.67]
[1752154485655,45.81449253,157.72,157.69,0.67]
[1752154485849,39.12043151,157.72,157.69,0.67]
[1752154486049,46.48449253,157.72,157.68,6.72406102]
[1752154486251,0.67,157.71,157.68,6.72406102]
[1752154486452,46.48449253,157.72,157.68,7.39406102]
[1752154486835,46.48449253,157.72,157.68,0.7]
[1752154487130,46.48449253,157.72,157.68,7.39406102]
[1752154487649,7.50622259,157.71,157.68,0.03]
[1752154488177,0.67,157.7,157.68,0.03]
[1752154488453,7.50622259,157.71,157.68,0.03]
[1752154488849,6.34115409,157.7,157.68,0.03]
[1752154490354,7.04115409,157.7,157.68,0.03]
[1752154490651,32.76,157.7,157.68,7.40406102]
[1752154490843,58.76,157.72,157.69,7.37406102]
[1752154491147,0.84216157,157.71,157.68,0.03]
[1752154491348,6.69406102,157.7,157.68,0.03]
[1752154491543,40.15406102,157.7,157.68,0.03]
[1752154491750,7.39406102,157.69,157.68,0.03]
[1752154491928,0.7,157.69,157.68,0.03]
[1752154492549,7.04155621,157.69,157.68,0.03]
[1752154494640,6.34155621,157.69,157.68,0.03]
[1752154495042,7.04155621,157.69,157.68,0.03]
[1752154497761,6.34155621,157.69,157.68,0.03]
[1752154498165,39.10122436,157.7,157.68,0.03]
[1752154498661,46.49528538,157.7,157.68,0.03]
[1752154498863,0.7,157.69,157.68,0.03]
[1752154499458,39.8777788,157.69,157.68,0.03]
[1752154499665,40.01994037,157.69,157.68,0.03]
[1752154500260,26.0,157.69,157.68,0.03]
[1752154500461,65.10155621,157.69,157.68,0.03]
[1752154500633,72.6377788,157.69,157.68,0.03]
[1752154501261,39.8777788,157.69,157.68,0.03]
[1752154501468,65.92371778,157.69,157.68,0.03]
[1752154501637,72.6177788,157.69,157.68,0.03]
[1752154502261,46.75994037,157.69,157.68,0.03]
[1752154503744,40.06587935,157.69,157.68,0.03]
[1752154504067,65.40587935,157.69,157.68,0.03]
[1752154504242,58.78,157.69,157.68,0.03]
[1752154504745,26.0,157.69,157.68,0.03]
[1752154505461,58.8,157.71,157.68,7.40406102]
[1752154505765,58.8,157.71,157.69,0.68]
[1752154505963,0.06,157.72,157.69,0.68]
[1752154506163,32.8,157.71,157.69,0.68]
[1752154506461,32.8,157.71,157.69,7.37406102]
[1752154506961,32.8,157.71,157.68,0.03]
[1752154507153,32.8,157.71,157.68,6.72406102]
[1752154507356,32.8,157.71,157.68,0.03]
[1752154507357,33.5,157.71,157.68,0.03]
[1752154507666,26.0,157.69,157.68,0.03]
[1752154507968,58.8,157.69,157.68,0.03]
[1752154508265,66.33622259,157.69,157.68,0.03]
[1752154508775,58.8,157.69,157.68,0.03]
[1752154509159,58.8,157.69,157.68,0.71]
[1752154510063,32.8,157.69,157.68,7.40406102]
[1752154510369,32.8,157.7,157.68,7.40406102]
[1752154510549,32.8,157.7,157.69,0.68]
[1752154510753,6.3408987,157.71,157.69,0.68]
[1752154510985,0.06,157.72,157.7,7.37406102]
[1752154511276,39.20041833,157.72,157.68,0.71]
[1752154511572,6.34115409,157.7,157.68,0.03]
[1752154511780,39.14115409,157.7,157.68,0.03]
[1752154511976,6.34115409,157.7,157.68,0.03]
[1752154512279,33.56,157.69,157.68,0.03]
[1752154512445,40.25406102,157.69,157.68,0.03]
[1752154512771,33.56,157.69,157.68,0.03]
[1752154513064,32.86,157.69,157.68,7.40406102]
[1752154513268,6.40049753,157.72,157.68,7.40406102]
[1752154513576,39.18092479,157.71,157.69,7.37406102]
[1752154513861,39.18092479,157.71,157.68,0.03]
[1752154513862,7.04092479,157.71,157.68,0.03]
[1752154514050,33.6,157.7,157.68,0.03]
[1752154514248,6.83622259,157.69,157.68,0.03]
[1752154514570,7.53622259,157.69,157.68,0.03]
[1752154515347,0.84216157,157.69,157.68,0.03]
[1752154515867,13.8777788,157.69,157.68,0.03]
[1752154518265,26.0,157.66,157.62,1.2765898]
[1752154518471,33.6,157.65,157.62,1.2765898]
[1752154518856,32.9,157.65,157.62,8.64065082]
[1752154519263,32.9,157.65,157.62,7.97065082]
[1752154519568,32.9,157.65,157.63,0.67]
[1752154519763,39.24337511,157.65,157.63,0.67]
[1752154520073,39.24337511,157.65,157.63,7.36406102]
[1752154520255,58.88,157.66,157.63,6.69406102]
[1752154520459,26.0,157.66,157.65,6.69406102]
[1752154520764,26.0,157.66,157.65,0.67]
[1752154520962,58.88,157.68,157.64,6.69406102]
[1752154521362,66.25406102,157.68,157.64,7.36406102]
[1752154521561,32.88,157.67,157.64,7.36406102]
[1752154521868,39.22268798,157.67,157.64,7.36406102]
[1752154522075,39.90268798,157.67,157.62,1.9465898]
[1752154522250,39.90268798,157.67,157.64,6.69406102]
[1752154522650,39.22268798,157.67,157.62,1.2765898]
[1752154522870,0.82216157,157.66,157.62,1.2765898]
[1752154523082,6.83622259,157.63,157.62,1.2765898]
[1752154523257,33.06216157,157.63,157.62,1.2765898]
[1752154523447,0.14216157,157.63,157.62,1.2765898]
[1752154523647,39.42613162,157.63,157.62,1.2765898]
[1752154524553,40.10613162,157.63,157.62,1.2765898]
[1752154525256,46.80019264,157.63,157.62,1.2765898]
[1752154527952,46.94235421,157.63,157.62,1.2765898]
[1752154528681,40.24829319,157.63,157.62,1.2765898]
[1752154528872,46.26235421,157.63,157.62,1.2765898]
[1752154529082,32.9,157.63,157.62,1.2765898]
[1752154529269,6.3427629,157.66,157.62,8.64065082]
[1752154529474,32.92,157.65,157.63,7.36406102]
[1752154529661,6.3427629,157.66,157.63,0.67]
[1752154529856,6.34316523,157.65,157.63,7.36406102]
[1752154530068,39.26316523,157.65,157.62,7.97065082]
[1752154530254,39.94316523,157.65,157.62,7.97065082]
[1752154530584,6.34316523,157.65,157.62,8.64065082]
[1752154530772,40.43622259,157.64,157.62,1.2765898]
[1752154530958,7.51622259,157.63,157.62,1.2765898]
[1752154531164,7.65838416,157.63,157.62,1.2765898]
[1752154531965,14.00235421,157.63,157.62,1.2765898]
[1752154532187,6.69406102,157.6,157.55,7.36406102]
[1752154532383,6.69406102,157.58,157.55,0.67]
[1752154532568,32.92,157.57,157.53,0.67]
[1752154532882,32.92,157.57,157.54,7.36406102]
[1752154533567,32.92,157.57,157.55,0.67]
[1752154533885,46.64055506,157.57,157.52,0.67]
[1752154534085,6.69406102,157.56,157.52,7.36406102]
[1752154534293,32.9,157.55,157.52,7.36406102]
[1752154534680,32.9,157.55,157.53,7.36406102]
[1752154535264,32.9,157.55,157.54,7.36406102]
[1752154535485,32.9,157.56,157.54,7.36406102]
[1752154535693,32.9,157.56,157.5,12.90978885]
[1752154535694,32.9,157.56,157.55,7.36406102]
[1752154535988,39.24649404,157.57,157.55,7.36406102]
[1752154536564,6.34649404,157.57,157.55,7.36406102]
[1752154536788,39.24649404,157.57,157.55,7.36406102]
[1752154537094,39.24649404,157.57,157.54,6.69406102]
[1752154537392,39.24649404,157.57,157.54,7.36406102]
[1752154537593,39.24649404,157.57,157.54,0.67]
[1752154537886,6.83622259,157.56,157.52,0.67]
[1752154538083,32.88,157.55,157.52,0.67]
[1752154538276,32.88,157.55,157.52,7.36406102]
[1752154538684,39.22738867,157.55,157.52,7.36406102]
[1752154538902,32.88,157.55,157.53,7.36406102]
[1752154539268,39.22725635,157.55,157.53,7.36406102]
[1752154539469,39.22725635,157.55,157.53,6.69406102]
[1752154540115,39.22722466,157.55,157.53,7.36406102]
[1752154542095,6.34722466,157.55,157.53,0.67]
[1752154542276,26.0,157.58,157.54,7.36406102]
[1752154542487,32.86,157.57,157.56,6.69406102]
[1752154542674,6.34517766,157.6,157.56,7.36406102]
[1752154542868,6.34397005,157.63,157.58,6.69406102]
[1752154543100,6.3427629,157.66,157.62,6.69406102]
[1752154543297,6.34246299,157.67,157.64,6.69406102]
[1752154543488,32.9,157.65,157.64,6.69406102]
[1752154543703,32.9,157.65,157.6,6.34492618]
[1752154544004,32.9,157.65,157.61,6.69406102]
[1752154544177,0.68,157.64,157.6,6.69406102]
[1752154544388,33.28,157.63,157.62,6.69406102]
[1752154544776,33.28,157.63,157.61,7.36406102]
[1752154544976,26.0,157.64,157.62,10.82200852]
[1752154545300,33.28,157.65,157.63,0.67]
[1752154545668,33.28,157.66,157.64,10.15200852]
[1752154545886,33.28,157.66,157.63,0.67]
[1752154546285,33.28,157.66,157.63,10.15200852]
[1752154546591,33.96,157.66,157.61,0.67]
[1752154546809,6.34356762,157.64,157.61,0.67]
[1752154546975,39.64356762,157.64,157.61,10.82200852]
[1752154547705,39.64356762,157.64,157.62,10.15200852]
[1752154548069,33.3,157.64,157.62,10.82200852]
[1752154548577,6.34306936,157.66,157.63,0.67]
[1752154548888,40.30306936,157.66,157.62,10.15200852]
[1752154549380,40.30306936,157.66,157.63,10.15200852]
[1752154549991,33.28,157.66,157.63,10.15200852]
[1752154550299,33.26,157.67,157.65,10.15200852]
[1752154550476,33.26,157.68,157.66,10.15200852]
[1752154550676,6.34115409,157.7,157.67,10.15200852]
[1752154550909,33.26,157.69,157.67,10.15200852]
[1752154551275,6.34115409,157.7,157.66,0.67]
[1752154551483,33.24,157.69,157.67,10.15200852]
[1752154551780,6.34115409,157.7,157.67,0.67]
[1752154551981,39.58115409,157.7,157.68,10.15200852]
[1752154552185,39.58115409,157.7,157.67,0.67]
[1752154552381,39.58115409,157.7,157.68,10.15200852]
[1752154553193,6.34115409,157.7,157.68,10.82200852]
[1752154553386,39.56115409,157.7,157.68,10.82200852]
[1752154553587,39.56115409,157.7,157.68,0.67]
[1752154553903,39.56115409,157.7,157.68,10.82200852]
[1752154554295,39.56115409,157.7,157.68,10.15200852]
[1752154555813,39.56115409,157.7,157.66,0.67]
[1752154556004,16.49396691,157.68,157.64,10.15200852]
[1752154556300,49.69396691,157.68,157.64,10.15200852]
[1752154556502,0.71,157.67,157.63,10.15200852]
[1752154556680,33.2,157.66,157.63,10.82200852]
[1752154557094,33.2,157.66,157.64,10.82200852]
[1752154557580,33.2,157.66,157.62,0.67]
[1752154557782,33.91,157.66,157.63,10.15200852]
[1752154557982,6.34316523,157.65,157.63,10.15200852]
[1752154558201,6.34316523,157.65,157.63,0.67]
[1752154558406,6.34316523,157.65,157.62,10.15200852]
[1752154558599,33.2,157.64,157.59,0.67]
[1752154558789,33.2,157.64,157.61,10.15200852]
[1752154559296,33.2,157.64,157.61,10.82200852]
[1752154559610,59.2,157.66,157.63,10.15200852]
[1752154559782,33.2,157.66,157.65,10.15200852]
[1752154559982,0.85216157,157.71,157.65,10.82200852]
[1752154560184,33.2,157.69,157.68,10.15200852]
[1752154560403,6.34087854,157.71,157.68,10.15200852]
[1752154560600,6.34087854,157.71,157.68,0.67]
[1752154560911,26.0,157.69,157.68,10.82200852]
[1752154561091,32.34087854,157.71,157.68,10.82200852]
[1752154561092,33.2,157.7,157.68,10.15200852]
[1752154561795,33.2,157.7,157.67,10.15200852]
[1752154562009,6.34155621,157.69,157.67,10.15200852]
[1752154562891,6.34155621,157.69,157.67,10.82200852]
[1752154563411,6.34155621,157.69,157.63,14.013432]
[1752154563412,7.05155621,157.69,157.65,0.67]
[1752154563610,33.2,157.68,157.65,0.67]
[1752154563809,33.2,157.68,157.65,10.82200852]
[1752154563988,0.06,157.66,157.65,10.82200852]
[1752154564490,33.95,157.66,157.61,0.67]
[1752154564693,10.86200852,157.65,157.61,10.15200852]
[1752154564894,33.22,157.64,157.59,2.171]
[1752154565207,33.22,157.64,157.61,10.15200852]
[1752154565414,33.22,157.64,157.61,10.82200852]
[1752154566092,39.56391346,157.64,157.61,10.82200852]
[1752154567010,39.56391346,157.64,157.61,10.15200852]
[1752154567234,40.27391346,157.64,157.61,10.15200852]
[1752154567918,39.56391346,157.64,157.61,10.15200852]
[1752154568399,0.06,157.66,157.63,10.15200852]
[1752154568602,0.06,157.66,157.65,10.15200852]
[1752154568913,33.24,157.66,157.64,10.15200852]
[1752154570003,39.5827629,157.66,157.64,10.15200852]
[1752154570203,40.2927629,157.66,157.62,0.67]
[1752154570714,39.5827629,157.66,157.63,0.67]
[1752154570915,33.24,157.66,157.64,0.67]
[1752154571115,33.24,157.66,157.65,10.15200852]
[1752154571321,39.5827629,157.66,157.65,10.15200852]
[1752154572101,6.4027629,157.66,157.65,10.15200852]
[1752154572418,7.1127629,157.66,157.64,10.15200852]
[1752154572603,7.1127629,157.66,157.61,0.67]
[1752154572808,7.1127629,157.66,157.63,10.15200852]
[1752154573012,33.14,157.65,157.63,10.15200852]
[1752154573512,33.14,157.65,157.64,10.15200852]
[1752154573716,33.14,157.65,157.64,10.82200852]
[1752154574090,0.06,157.66,157.64,10.82200852]
[1752154574506,0.06,157.66,157.65,10.15200852]
[1752154574708,0.06,157.66,157.65,10.82200852]
[1752154574908,26.06,157.66,157.65,10.82200852]
[1752154575313,0.06,157.66,157.65,10.82200852]
[1752154576210,0.06,157.66,157.65,10.15200852]
[1752154576800,0.06,157.66,157.63,6.34390096]
[1752154577014,0.06,157.66,157.65,10.82200852]
[1752154577828,0.06,157.66,157.65,0.67]
[1752154578014,0.06,157.66,157.65,10.82200852]
[1752154578616,0.06,157.66,157.65,0.67]
[1752154578814,0.06,157.66,157.65,10.82200852]
[1752154579423,0.06,157.66,157.65,0.67]
[1752154579743,0.06,157.66,157.65,10.82200852]
[1752154581821,0.06,157.66,157.65,0.67]
[1752154582024,0.06,157.66,157.65,10.82200852]
[1752154582518,0.06,157.66,157.65,17.16517375]
[1752154582945,0.06,157.66,157.65,35.81482261]
[1752154583128,0.06,157.72,157.65,87.96690579]
[1752154583326,0.06,157.72,157.68,10.15200852]
[1752154583618,0.06,157.72,157.71,10.15200852]
[1752154584923,0.06,157.72,157.71,10.85200852]
[1752154585124,0.06,157.72,157.71,10.15200852]
[1752154585435,0.72,157.72,157.69,10.15200852]
[1752154585740,33.26216157,157.72,157.69,10.15200852]
[1752154586044,33.92216157,157.72,157.7,10.15200852]
[1752154586236,33.92216157,157.72,157.67,0.7]
[1752154586436,33.26216157,157.72,157.7,10.15200852]
[1752154586833,39.60271373,157.72,157.7,10.15200852]
[1752154587139,0.66,157.71,157.69,10.15200852]
[1752154588046,6.34115333,157.71,157.7,10.15200852]
[1752154588419,6.34115333,157.71,157.67,0.7]
[1752154588622,6.34115333,157.71,157.68,0.7]
[1752154589047,6.34115333,157.71,157.7,10.15200852]
[1752154590336,33.12,157.72,157.7,10.15200852]
[1752154590645,0.06,157.72,157.71,10.15200852]
[1752154591034,0.06,157.72,157.71,10.85200852]
[1752154591342,33.06034998,157.72,157.7,10.15200852]
[1752154591545,33.06034998,157.72,157.69,10.15200852]
[1752154592831,33.06034998,157.72,157.69,6.76177223]
[1752154593838,33.06034998,157.72,157.7,6.76177223]
[1752154594243,0.66,157.71,157.66,0.7]
[1752154594446,0.66,157.71,157.69,6.76177223]
[1752154594654,32.40034998,157.72,157.69,6.76177223]
[1752154594857,33.06034998,157.72,157.7,6.76177223]
[1752154595034,33.06034998,157.72,157.67,0.7]
[1752154595242,0.66,157.71,157.69,6.76177223]
[1752154595459,7.00115409,157.7,157.65,0.7]
[1752154595760,0.66,157.69,157.66,6.76177223]
[1752154596643,7.00195839,157.68,157.66,6.76177223]
[1752154596853,7.00195839,157.68,157.65,6.76177223]
[1752154597059,6.34195839,157.68,157.66,6.76177223]
[1752154597248,6.34195839,157.68,157.67,6.76177223]
[1752154597853,6.34195839,157.68,157.66,6.76177223]
[1752154598161,6.34155621,157.69,157.66,6.76177223]
[1752154598659,6.34155621,157.69,157.66,7.46177223]
[1752154599363,6.34155621,157.69,157.67,6.76177223]
[1752154599540,6.48347148,157.7,157.68,7.46177223]
[1752154599745,6.34130991,157.7,157.69,6.76177223]
[1752154600039,6.54287241,157.72,157.69,7.46177223]
[1752154600248,6.54287241,157.72,157.71,6.76177223]
[1752154600854,0.06,157.72,157.71,6.76177223]
[1752154601048,0.06,157.72,157.71,7.46177223]
[1752154602253,0.06,157.72,157.71,13.80252424]
[1752154602662,0.2,157.73,157.71,38.5220731]
[1752154602861,0.2,157.73,157.72,7.46177223]
[1752154604057,1.6439,157.81,157.74,6.33954608]
[1752154604239,0.2,157.82,157.8,6.76177223]
[1752154604438,26.0,157.81,157.8,6.76177223]
[1752154604658,0.2,157.82,157.8,6.76177223]
[1752154604859,33.78,157.82,157.8,10.12946844]
[1752154605051,6.33687081,157.81,157.8,10.12946844]
[1752154605955,6.53648009,157.82,157.8,10.12946844]
[1752154606275,6.53648009,157.82,157.81,10.12946844]
[1752154606572,7.19648009,157.82,157.81,10.12946844]
[1752154606754,7.19648009,157.82,157.8,10.12946844]
[1752154606957,7.19648009,157.82,157.76,0.7]
[1752154606958,0.66,157.81,157.76,0.7]
[1752154607152,6.53648009,157.82,157.8,10.12946844]
[1752154607754,0.2,157.82,157.81,10.12946844]
[1752154608079,26.2,157.82,157.81,10.12946844]
[1752154608322,0.2,157.82,157.81,10.82946844]
[1752154609648,0.2,157.82,157.81,17.16620248]
[1752154609970,0.2,157.82,157.81,35.81585134]
[1752154610542,0.06,157.87,157.81,37.41915134]
[1752154610844,0.06,157.87,157.86,10.12946844]
[1752154611368,0.06,157.87,157.86,10.78946844]
[1752154612764,0.06,157.87,157.86,27.25366385]
[1752154612957,0.06,157.87,157.86,20.91893688]
[1752154613159,0.06,157.87,157.86,10.78946844]
[1752154614154,0.06,157.87,157.86,10.12946844]
[1752154614765,0.06,157.87,157.85,0.66]
[1752154614966,0.06,157.87,157.83,0.66]
[1752154615177,0.76,157.87,157.86,10.12946844]
[1752154615473,0.06,157.87,157.86,10.12946844]
[1752154615975,0.06,157.87,157.86,10.78946844]
[1752154616381,0.06,157.87,157.86,27.25366385]
[1752154616680,0.06,157.87,157.86,10.78946844]
[1752154616873,0.06,157.87,157.86,0.66]
[1752154617182,0.06,157.87,157.86,10.78946844]
[1752154617986,0.06,157.87,157.86,27.25366385]
[1752154618182,0.06,157.87,157.86,10.78946844]
[1752154618953,0.06,157.87,157.86,6.99472697]
[1752154619173,0.06,157.87,157.86,10.78946844]
[1752154620061,0.06,157.87,157.86,45.90331271]
[1752154621961,0.06,157.87,157.86,10.78946844]
[1752154622281,0.06,157.87,157.84,32.5608]
[1752154622282,0.76,157.87,157.84,10.12946844]
[1752154622491,10.88946844,157.87,157.83,10.12946844]
[1752154622784,0.06,157.87,157.86,10.12946844]
[1752154622990,7.95103222,157.99,157.9,18.64964886]
[1752154623159,7.02937939,158.0,157.97,10.12946844]
[1752154623365,33.02937939,158.0,157.97,10.12946844]
[1752154623564,6.52991517,157.98,157.94,0.66]
[1752154623789,0.9,157.98,157.97,10.12946844]
[1752154623964,7.22991517,157.98,157.97,10.12946844]
[1752154624163,6.52991517,157.98,157.97,10.12946844]
[1752154624371,7.22991517,157.98,157.97,10.12946844]
[1752154625181,6.52991517,157.98,157.97,6.73808275]
[1752154625490,0.2,157.98,157.97,6.73808275]
[1752154625664,6.52991517,157.98,157.97,6.73808275]
[1752154626071,7.22991517,157.98,157.97,6.73808275]
[1752154626589,0.2,157.98,157.97,6.73808275]
[1752154627092,6.52991517,157.98,157.97,6.73808275]
[1752154627691,0.2,157.98,157.97,6.73808275]
[1752154628688,0.2,157.98,157.95,6.99085444]
[1752154628892,0.2,157.98,157.97,6.73808275]
[1752154629185,0.2,157.98,157.93,0.66]
[1752154629186,0.2,157.98,157.95,0.66]
[1752154629399,7.22992596,157.98,157.96,6.73808275]
[1752154629768,6.52992596,157.98,157.96,6.73808275]
[1752154629981,7.22992596,157.98,157.97,6.73808275]
[1752154630180,7.22992596,157.98,157.96,6.73808275]
[1752154630686,6.52992596,157.98,157.97,6.73808275]
[1752154630870,0.2,157.98,157.97,6.73808275]
[1752154631075,6.52991517,157.98,157.97,6.73808275]
[1752154631476,0.2,157.98,157.97,6.73808275]
[1752154633796,0.2,157.98,157.97,7.39808275]
[1752154634295,0.2,157.98,157.97,13.72839863]
[1752154636898,0.2,157.98,157.97,32.37804749]
[1752154637397,0.06,158.01,157.98,18.64964886]
[1752154637594,0.06,158.01,158.0,18.64964886]
[1752154637896,0.06,158.01,158.0,6.73808275]
[1752154638333,0.06,158.01,158.0,7.39808275]
[1752154638476,0.76,158.01,157.95,6.99103023]
[1752154638780,7.49808275,158.01,157.96,6.73808275]
[1752154638980,6.73808275,157.98,157.94,6.73808275]
[1752154639185,0.7,157.97,157.94,6.73808275]
[1752154639495,6.73808275,157.98,157.96,6.73808275]
[1752154639496,6.32991517,157.98,157.96,6.73808275]
[1752154639887,7.02991517,157.98,157.96,6.73808275]
[1752154640214,6.32991517,157.98,157.96,6.73808275]
[1752154640502,0.7,157.97,157.94,6.73808275]
[1752154640797,0.7,157.96,157.94,6.73808275]
[1752154641003,0.7,157.96,157.93,6.73808275]
[1752154641173,0.7,157.95,157.93,6.73808275]
[1752154641576,7.03119403,157.95,157.93,6.73808275]
[1752154642194,7.03119403,157.95,157.9,0.7]
[1752154642389,0.7,157.94,157.9,6.73808275]
[1752154642701,6.33119403,157.95,157.92,6.73808275]
[1752154642878,6.33119403,157.95,157.92,10.11248036]
[1752154643692,0.7,157.94,157.89,0.7]
[1752154643901,0.7,157.93,157.89,0.7]
[1752154644104,0.7,157.92,157.9,10.11248036]
[1752154644294,0.7,157.92,157.89,10.11248036]
[1752154644490,0.7,157.91,157.88,10.14248036]
[1752154645110,0.84216157,157.93,157.89,10.11248036]
[1752154645617,0.84216157,157.93,157.88,0.03]
[1752154645781,7.03232016,157.92,157.89,10.11248036]
[1752154646788,7.03232016,157.92,157.88,10.14248036]
[1752154646789,0.7,157.91,157.88,10.14248036]
[1752154647102,0.84216157,157.91,157.88,10.14248036]
[1752154647285,6.33232016,157.92,157.89,10.11248036]
[1752154647487,7.03232016,157.92,157.89,10.11248036]
[1752154647684,7.03232016,157.92,157.88,10.14248036]
[1752154647685,0.7,157.91,157.88,10.14248036]
[1752154647900,7.03308436,157.91,157.88,10.14248036]
[1752154648804,6.33242594,157.92,157.89,10.81248036]
[1752154649009,6.33242594,157.92,157.89,10.11248036]
[1752154649401,7.03242594,157.92,157.89,10.11248036]
[1752154649580,0.7,157.91,157.88,10.14248036]
[1752154649986,7.03305492,157.91,157.88,10.14248036]
[1752154650185,6.33305492,157.91,157.88,10.14248036]
[1752154651213,7.03305492,157.91,157.89,10.11248036]